bitfinex/quotes_SOLUSD_20260305
["timestamp","ask_amount","ask_price","bid_price","bid_amount"]
[1772710241626,37.92475727,92.288,92.221,1.63294034]
[1772710241627,1.6028799,92.259,92.221,1.63294034]
[1772710242420,1.6028799,92.249,92.215,10.84415812]
[1772710242808,1.6028799,92.247,92.215,10.84415812]
[1772710243009,1.6028799,92.247,92.214,10.84434033]
[1772710243209,1.6028799,92.247,92.214,12.47728067]
[1772710245215,1.6028799,92.239,92.205,1.63294034]
[1772710245928,151.63823448,92.325,92.213,1.63294034]
[1772710246237,1.6028799,92.269,92.227,1.63294034]
[1772710246422,1.6028799,92.259,92.219,1.63294034]
[1772710248631,1.6028799,92.249,92.202,1.63294034]
[1772710248946,1.6028799,92.249,92.206,1.52817703]
[1772710249737,10.83916841,92.258,92.206,1.52817703]
[1772710250250,1.56106291,92.257,92.206,1.52817703]
[1772710250612,1.56106291,92.249,92.208,1.52817703]
[1772710251320,1.56106291,92.239,92.207,10.84516359]
[1772710251841,1.56106291,92.239,92.204,10.84551646]
[1772710252543,1.56106291,92.239,92.203,58.31933607]
[1772710252733,4.95875149,92.24,92.203,58.31933607]
[1772710252734,1.56106291,92.237,92.204,67.6366755]
[1772710252939,1.56106291,92.237,92.205,1.52817703]
[1772710254231,10.84036997,92.248,92.205,1.52817703]
[1772710254431,1.56106291,92.262,92.207,1.52817703]
[1772710254626,1.56106291,92.269,92.216,0.14216157]
[1772710254825,10.83799367,92.268,92.217,1.52817703]
[1772710255036,1.56106291,92.259,92.217,1.52817703]
[1772710255224,37.93297784,92.268,92.217,1.52817703]
[1772710255225,1.56106291,92.249,92.217,1.52817703]
[1772710255426,1.56106291,92.249,92.217,58.31933607]
[1772710256246,1.56106291,92.249,92.218,1.52817703]
[1772710256417,4.95875149,92.26,92.218,1.52817703]
[1772710256927,1.56106291,92.249,92.219,10.84375237]
[1772710257140,1.56106291,92.249,92.218,56.79115904]
[1772710257339,1.56106291,92.239,92.21,10.84481075]
[1772710258843,1.56106291,92.239,92.208,56.79115904]
[1772710259140,12.40258158,92.238,92.21,1.52817703]
[1772710260746,1.56106291,92.237,92.208,56.79115904]
[1772710261045,1.56106291,92.229,92.208,56.79115904]
[1772710261249,4.95875149,92.24,92.197,1.52817703]
[1772710261426,10.84140114,92.239,92.197,1.52817703]
[1772710261742,12.40246405,92.239,92.197,1.52817703]
[1772710261921,1.56106291,92.238,92.197,1.52817703]
[1772710262848,1.56106291,92.209,92.18,0.1]
[1772710263033,1.56106291,92.217,92.181,1.52817703]
[1772710263550,10.84386996,92.218,92.181,1.52817703]
[1772710264131,1.56106291,92.217,92.181,1.52817703]
[1772710264645,10.84386996,92.218,92.181,1.52817703]
[1772710264947,10.84304689,92.225,92.183,1.52817703]
[1772710265149,1.56106291,92.224,92.183,1.52817703]
[1772710265847,10.84304689,92.225,92.183,1.52817703]
[1772710266048,10.8422432,92.232,92.187,1.52817703]
[1772710266433,37.94780309,92.232,92.187,1.52817703]
[1772710267347,10.84140114,92.239,92.189,1.52817703]
[1772710267531,10.84140114,92.239,92.197,1.52817703]
[1772710267726,10.84140114,92.239,92.188,37.96589577]
[1772710267727,10.84046093,92.247,92.199,1.52817703]
[1772710267966,10.83905093,92.259,92.207,1.52817703]
[1772710268536,1.56106291,92.258,92.207,1.52817703]
[1772710269329,1.56106291,92.239,92.209,1.52817703]
[1772710270354,37.93750066,92.257,92.19,1.52817703]
[1772710270355,1.56106291,92.229,92.19,1.52817703]
[1772710270553,1.56106291,92.22,92.19,1.52817703]
[1772710271534,10.84375237,92.219,92.19,1.52817703]
[1772710272752,37.9531333,92.219,92.19,1.52817703]
[1772710272950,37.9531333,92.219,92.192,1.52817703]
[1772710273256,10.84375237,92.219,92.192,1.52817703]
[1772710273755,10.84375237,92.219,92.193,10.84681049]
[1772710273953,10.84140114,92.239,92.194,1.52817703]
[1772710274257,1.56106291,92.238,92.196,1.52817703]
[1772710277864,1.56106291,92.236,92.198,1.52817703]
[1772710278473,10.84163621,92.237,92.198,1.52817703]
[1772710279257,1.54953561,92.236,92.198,1.52817703]
[1772710279757,1.54953561,92.236,92.198,56.79115904]
[1772710279954,1.54953561,92.236,92.199,1.5694071]
[1772710280152,1.54953561,92.234,92.201,1.5694071]
[1772710280862,1.54953561,92.259,92.205,1.5694071]
[1772710281051,1.54953561,92.259,92.207,1.5694071]
[1772710281937,1.54953561,92.258,92.209,1.5694071]
[1772710282162,10.83905093,92.259,92.211,1.5694071]
[1772710282346,1.54953561,92.278,92.216,0.28432314]
[1772710282662,1.54953561,92.269,92.227,1.5694071]
[1772710283245,12.38623735,92.279,92.227,1.5694071]
[1772710283750,1.54953561,92.278,92.227,1.5694071]
[1772710284162,1.54953561,92.276,92.229,1.5694071]
[1772710284361,10.83693661,92.277,92.229,1.5694071]
[1772710284542,1.54953561,92.276,92.229,1.5694071]
[1772710284857,10.83670174,92.279,92.229,1.5694071]
[1772710285058,12.38623735,92.279,92.229,1.5694071]
[1772710286460,12.38623735,92.279,92.217,0.28432314]
[1772710286461,1.54953561,92.278,92.231,1.5694071]
[1772710288746,10.83693661,92.277,92.233,12.33596632]
[1772710288951,1.53206553,92.276,92.234,1.49385992]
[1772710291376,1.53206553,92.274,92.236,1.49385992]
[1772710291554,1.53206553,92.274,92.237,1.49385992]
[1772710292674,37.93010023,92.275,92.236,56.79115904]
[1772710292675,1.53206553,92.259,92.236,56.79115904]
[1772710293562,12.36818013,92.284,92.238,1.49385992]
[1772710293756,1.53206553,92.279,92.238,1.49385992]
[1772710294682,1.53206553,92.269,92.236,56.79115904]
[1772710294883,1.53206553,92.269,92.237,56.79115904]
[1772710295561,37.9264011,92.284,92.24,1.49385992]
[1772710295763,39.45846663,92.284,92.24,1.49385992]
[1772710295970,1.53206553,92.283,92.24,1.49385992]
[1772710296363,1.53206553,92.283,92.242,1.49385992]
[1772710296574,1.53206553,92.279,92.242,1.49385992]
[1772710296972,1.53206553,92.279,92.241,56.79115904]
[1772710297275,1.53206553,92.279,92.238,1.49385992]
[1772710298765,1.53206553,92.269,92.238,1.49385992]
[1772710299164,1.53206553,92.269,92.239,1.49385992]
[1772710300174,1.53206553,92.269,92.238,10.84144711]
[1772710300672,1.53206553,92.269,92.229,1.49385992]
[1772710300996,1.53206553,92.267,92.23,12.33631898]
[1772710301669,1.53206553,92.267,92.231,1.49385992]
[1772710303285,10.83822859,92.266,92.233,1.49385992]
[1772710303784,12.37029412,92.266,92.234,56.79115904]
[1772710303984,12.37029412,92.266,92.235,1.49385992]
[1772710304559,10.83822859,92.266,92.235,1.49385992]
[1772710305264,1.53206553,92.265,92.235,1.49385992]
[1772710305781,1.53206553,92.263,92.235,1.49385992]
[1772710306376,1.53206553,92.263,92.235,12.33567311]
[1772710306876,1.53206553,92.263,92.236,56.79115904]
[1772710308992,12.35294042,92.278,92.238,1.48764398]
[1772710309288,39.44498836,92.278,92.238,1.48764398]
[1772710309582,37.92886711,92.278,92.238,1.48764398]
[1772710309785,1.51612125,92.277,92.238,1.48764398]
[1772710311389,1.51612125,92.275,92.24,1.48764398]
[1772710311578,1.51612125,92.284,92.24,1.77196712]
[1772710312306,10.83599718,92.285,92.239,56.79115904]
[1772710312307,4.96710192,92.27,92.239,56.79115904]
[1772710312482,37.92599013,92.285,92.239,56.79115904]
[1772710312483,1.51612125,92.269,92.239,56.79115904]
[1772710313791,1.51612125,92.267,92.239,56.79115904]
[1772710315191,10.83822859,92.266,92.239,58.27880302]
[1772710315591,10.83822859,92.266,92.239,56.79115904]
[1772710315797,10.83822859,92.266,92.24,1.48764398]
[1772710318179,12.35434984,92.266,92.24,1.48764398]
[1772710318900,12.35434984,92.266,92.195,104.4]
[1772710318901,1.51612125,92.265,92.233,1.48764398]
[1772710321101,10.83758335,92.272,92.235,1.48764398]
[1772710321282,10.83482895,92.295,92.239,1.48764398]
[1772710321478,10.83482895,92.295,92.241,1.77196712]
[1772710322104,1.51612125,92.294,92.241,1.77196712]
[1772710322485,4.96710192,92.28,92.241,1.48764398]
[1772710322687,1.51612125,92.279,92.235,1.48764398]
[1772710322895,1.51612125,92.269,92.235,1.48764398]
[1772710323703,1.51612125,92.269,92.237,1.48764398]
[1772710324998,10.83799367,92.268,92.239,1.48764398]
[1772710325311,12.35411492,92.268,92.239,1.48764398]
[1772710325508,1.51612125,92.267,92.239,1.48764398]
[1772710327306,10.83822859,92.266,92.24,10.8412836]
[1772710327506,10.83822859,92.266,92.241,1.48764398]
[1772710331901,12.35434984,92.266,92.241,1.48764398]
[1772710332110,1.51612125,92.265,92.241,1.48764398]
[1772710332705,10.83846353,92.264,92.241,1.48764398]
[1772710333507,10.83846353,92.264,92.242,1.48764398]
[1772710333688,1.51612125,92.305,92.242,1.77196712]
[1772710333887,4.96710192,92.3,92.244,1.77196712]
[1772710334111,1.51612125,92.299,92.244,1.77196712]
[1772710334310,1.51612125,92.289,92.244,1.48764398]
[1772710334690,1.51612125,92.287,92.246,1.48764398]
[1772710335399,10.83564493,92.288,92.246,1.77196712]
[1772710335596,1.51612125,92.287,92.246,1.77196712]
[1772710336111,10.83564493,92.288,92.246,1.77196712]
[1772710336308,12.35176618,92.288,92.246,1.77196712]
[1772710337019,1.51612125,92.296,92.248,1.77196712]
[1772710337313,1.51612125,92.289,92.248,1.48764398]
[1772710338412,1.51612125,92.269,92.209,12.47473391]
[1772710338708,1.51612125,92.269,92.219,1.48764398]
[1772710338916,1.45459975,92.267,92.224,1.50407856]
[1772710339223,1.45459975,92.279,92.226,1.50407856]
[1772710339388,1.45459975,92.313,92.228,1.50407856]
[1772710339589,27.08148276,92.314,92.232,1.50407856]
[1772710339590,1.45459975,92.299,92.232,1.50407856]
[1772710339809,1.45459975,92.299,92.242,1.50407856]
[1772710340016,1.45459975,92.299,92.246,1.50407856]
[1772710340599,1.45459975,92.297,92.248,1.50407856]
[1772710341114,1.45459975,92.279,92.248,1.50407856]
[1772710343020,1.45459975,92.277,92.25,1.50407856]
[1772710343719,10.83681917,92.278,92.25,1.50407856]
[1772710344115,1.45459975,92.277,92.25,1.50407856]
[1772710346121,1.45459975,92.277,92.252,1.50407856]
[1772710347627,10.83705405,92.276,92.252,1.50407856]
[1772710351817,10.83705405,92.276,92.253,10.83975588]
[1772710352014,10.83705405,92.276,92.254,1.58613588]
[1772710353634,1.44793892,92.275,92.245,1.58613588]
[1772710354012,1.44793892,92.273,92.245,1.58613588]
[1772710354834,1.44793892,92.273,92.246,56.79115904]
[1772710355031,1.44793892,92.273,92.246,58.37729492]
[1772710355511,1.44793892,92.273,92.247,1.58613588]
[1772710355714,27.09263513,92.276,92.247,1.58613588]
[1772710355715,1.44793892,92.271,92.247,1.58613588]
[1772710357837,10.83775875,92.27,92.248,1.58613588]
[1772710359238,10.83775875,92.27,92.227,0.28432314]
[1772710359239,1.44793892,92.269,92.221,0.28432314]
[1772710359428,1.44793892,92.269,92.223,0.28432314]
[1772710360043,1.44793892,92.267,92.225,0.28432314]
[1772710361145,1.44793892,92.265,92.227,1.58613588]
[1772710363639,1.44793892,92.263,92.229,1.58613588]
[1772710363944,1.44793892,92.263,92.231,1.58613588]
[1772710366853,1.44793892,92.263,92.233,1.58613588]
[1772710367349,10.83846353,92.264,92.233,1.58613588]
[1772710368450,1.44793892,92.286,92.235,1.58613588]
[1772710369139,10.83599718,92.285,92.236,37.94613816]
[1772710369446,1.46497786,92.284,92.238,1.47929869]
[1772710370342,1.46497786,92.284,92.238,1.76362183]
[1772710370547,1.46497786,92.284,92.239,1.76362183]
[1772710371754,1.46497786,92.29,92.241,1.76362183]
[1772710374551,1.46497786,92.288,92.244,1.47929869]
[1772710375651,12.30074021,92.287,92.248,1.47929869]
[1772710378059,12.30074021,92.287,92.25,1.47929869]
[1772710378361,10.83576235,92.287,92.25,1.47929869]
[1772710378740,1.46497786,92.289,92.25,1.47929869]
[1772710379048,1.46497786,92.288,92.252,1.47929869]
[1772710379250,1.46497786,92.288,92.254,1.47929869]
[1772710379444,1.46497786,92.308,92.254,1.76362183]
[1772710379644,1.46497786,92.308,92.256,1.47929869]
[1772710380263,1.46497786,92.306,92.259,1.47929869]
[1772710380663,1.46497786,92.306,92.262,1.47929869]
[1772710381159,1.46497786,92.299,92.262,1.47929869]
[1772710381355,4.96012946,92.28,92.245,1.47929869]
[1772710381585,1.46497786,92.269,92.245,1.47929869]
[1772710382091,1.46497786,92.279,92.247,1.47929869]
[1772710382252,1.46497786,92.279,92.249,1.47929869]
[1772710382461,1.46497786,92.285,92.249,1.47929869]
[1772710382762,1.46497786,92.293,92.249,1.47929869]
[1772710384075,10.83517531,92.292,92.249,1.47929869]
[1772710384256,1.46497786,92.291,92.251,1.47929869]
[1772710384679,1.46497786,92.289,92.25,10.8401084]
[1772710384887,1.46497786,92.279,92.25,10.8401084]
[1772710386377,1.46497786,92.277,92.246,1.47929869]
[1772710388284,1.46497786,92.277,92.241,10.84111627]
[1772710388489,1.46497786,92.275,92.241,12.32041496]
[1772710388875,1.46497786,92.275,92.242,1.47929869]
[1772710389690,1.46497786,92.275,92.239,61.3]
[1772710389691,1.46497786,92.269,92.239,61.3]
[1772710389884,1.46497786,92.269,92.239,62.77929869]
[1772710390186,1.46497786,92.269,92.24,1.47929869]
[1772710390872,1.46497786,92.267,92.24,1.47929869]
[1772710391996,1.46497786,92.265,92.24,1.47929869]
[1772710392184,1.46497786,92.265,92.237,1.47929869]
[1772710394098,1.46497786,92.263,92.238,10.84151867]
[1772710394572,1.46497786,92.263,92.209,3.69383402]
[1772710394573,1.46497786,92.249,92.214,1.47929869]
[1772710395169,1.46497786,92.249,92.214,12.32363902]
[1772710395395,1.46497786,92.249,92.215,1.47929869]
[1772710395699,1.46497786,92.249,92.215,0.47929869]
[1772710396104,1.46497786,92.247,92.216,10.84410514]
[1772710396602,1.46497786,92.239,92.189,10.84728112]
[1772710396791,1.46497786,92.219,92.189,10.84728112]
[1772710396989,1.46497786,92.219,92.181,10.84822251]
[1772710398078,1.46497786,92.209,92.177,10.84869327]
[1772710398905,1.46497786,92.209,92.175,10.84887881]
[1772710399076,37.95354486,92.218,92.172,442.8346014]
[1772710399077,1.55885499,92.189,92.172,442.8346014]
[1772710399272,4.96012946,92.18,92.172,378.9329151]
[1772710399702,4.96012946,92.19,92.172,378.9329151]
[1772710400078,0.28432314,92.211,92.172,378.9329151]
[1772710400079,10.84845789,92.179,92.172,317.34147075]
[1772710400280,10.84845789,92.179,92.147,1.59133978]
[1772710400499,4.97504012,92.16,92.138,0.69009529]
[1772710400801,4.97504012,92.16,92.141,1.59133978]
[1772710400982,4.97504012,92.17,92.141,1.59133978]
[1772710401697,4.97504012,92.17,92.138,0.69009529]
[1772710401698,0.0997434,92.168,92.138,0.69009529]
[1772710404493,0.09198831,92.159,92.138,0.69009529]
[1772710405005,4.97504012,92.15,92.14,0.01284372]
[1772710405391,37.97372217,92.169,92.141,1.63491792]
[1772710405706,1.61683434,92.159,92.14,0.01284372]
[1772710406808,1.61683434,92.157,92.14,0.01284372]
[1772710407303,1.61683434,92.179,92.14,0.01284372]
[1772710407507,1.61683434,92.159,92.14,0.01284372]
[1772710407807,1.61683434,92.149,92.138,0.01284372]
[1772710407994,1.61683434,92.149,92.13,0.01284372]
[1772710408903,0.83948698,92.147,92.13,0.01284372]
[1772710409402,4.97504012,92.14,92.13,0.01284372]
[1772710409787,0.83810899,92.139,92.13,0.01284372]
[1772710410007,0.83810899,92.147,92.13,0.01284372]
[1772710410910,0.83553377,92.138,92.13,0.01284372]
[1772710411122,4.97504012,92.13,92.105,1.5031076]
[1772710411415,0.83553377,92.138,92.111,1.5031076]
[1772710411987,4.97504012,92.13,92.111,1.5031076]
[1772710412288,0.83296816,92.134,92.103,1.5031076]
[1772710412886,10.85387429,92.133,92.111,1.5031076]
[1772710413108,0.83042829,92.149,92.111,1.5031076]
[1772710413483,4.97504012,92.14,92.111,1.5031076]
[1772710414100,0.82805667,92.119,92.09,1.6031076]
[1772710414305,0.82805667,92.119,92.09,0.1]
[1772710414703,0.82805667,92.119,92.09,1.6031076]
[1772710415085,10.85564167,92.118,92.09,1.6031076]
[1772710415310,4.97504012,92.13,92.092,1.5031076]
[1772710415513,10.85434553,92.129,92.092,1.5031076]
[1772710417308,10.85434553,92.129,92.094,1.5031076]
[1772710418893,0.82333083,92.137,92.094,1.5031076]
[1772710419093,0.82333083,92.137,92.093,10.8585886]
[1772710419094,0.82333083,92.169,92.096,1.5031076]
[1772710419293,11.67308345,92.168,92.097,10.85811698]
[1772710419515,0.82333083,92.167,92.098,1.5031076]
[1772710420407,0.82098566,92.165,92.098,1.5031076]
[1772710420813,0.82098566,92.165,92.106,1.5031076]
[1772710420994,0.81864778,92.159,92.106,1.5031076]
[1772710421604,0.81864778,92.157,92.108,1.5031076]
[1772710423995,4.97504012,92.16,92.11,1.5031076]
[1772710423996,0.81167768,92.155,92.11,1.5031076]
[1772710425606,0.28432314,92.181,92.109,99.29845834]
[1772710425607,10.84987034,92.167,92.112,1.5031076]
[1772710425812,10.84987034,92.167,92.116,1.5031076]
[1772710425995,0.80706692,92.149,92.115,1.5031076]
[1772710426399,0.80706692,92.159,92.115,1.5031076]
[1772710427911,10.8470458,92.191,92.119,1.5031076]
[1772710428217,27.92051972,92.19,92.135,1.5031076]
[1772710428419,0.80248468,92.189,92.135,1.5031076]
[1772710429016,10.8470458,92.191,92.135,1.5031076]
[1772710429409,10.84645754,92.196,92.135,1.5031076]
[1772710430114,10.84539883,92.205,92.137,1.79752654]
[1772710432121,10.84539883,92.205,92.143,3.69383402]
[1772710432417,10.84539883,92.205,92.155,0.28432314]
[1772710432620,10.84539883,92.205,92.156,1.5132034]
[1772710433819,10.84492699,92.21,92.156,1.5132034]
[1772710434605,10.84492699,92.21,92.146,0.28432314]
[1772710434606,0.78660965,92.209,92.158,1.5132034]
[1772710436826,0.78437851,92.207,92.16,1.5132034]
[1772710437131,10.84504598,92.208,92.16,1.5132034]
[1772710437307,11.62720019,92.208,92.16,1.5132034]
[1772710437809,27.11114484,92.213,92.162,1.5132034]
[1772710438009,27.89108156,92.213,92.162,1.5132034]
[1772710438927,38.73553949,92.213,92.164,1.5132034]
[1772710440110,0.77552206,92.212,92.164,1.5132034]
[1772710440709,0.77332484,92.209,92.164,1.5132034]
[1772710440924,0.77332484,92.207,92.166,1.5132034]
[1772710441329,10.84504598,92.208,92.166,1.5132034]
[1772710442214,0.77113432,92.207,92.166,1.5132034]
[1772710443419,0.77113432,92.207,92.146,0.28432314]
[1772710443420,10.84375237,92.219,92.168,1.5132034]
[1772710444310,0.76677329,92.218,92.168,1.5132034]
[1772710445112,27.10674717,92.228,92.146,87.10277764]
[1772710445113,10.84303703,92.226,92.174,1.5132034]
[1772710445328,10.84303703,92.226,92.176,1.5132034]
[1772710446214,0.76243876,92.225,92.176,1.5132034]
[1772710448038,10.84316446,92.224,92.178,1.5132034]
[1772710448625,0.75813052,92.237,92.18,1.5132034]
[1772710448926,0.75598619,92.245,92.182,1.5132034]
[1772710449123,0.75598619,92.245,92.184,1.5132034]
[1772710449631,0.75598619,92.245,92.186,3.69383402]
[1772710449828,11.59502027,92.244,92.189,1.5132034]
[1772710450031,0.75420678,92.243,92.189,1.5132034]
[1772710450637,0.75420678,92.243,92.191,1.5132034]
[1772710451939,11.59002865,92.253,92.193,1.5132034]
[1772710452138,0.75027277,92.252,92.193,1.5132034]
[1772710452835,0.74815255,92.249,92.193,1.5132034]
[1772710454030,0.74717944,92.247,92.195,1.5132034]
[1772710454535,4.97504012,92.24,92.195,1.5132034]
[1772710454732,0.74717944,92.239,92.195,1.5132034]
[1772710455115,0.74713313,92.229,92.195,1.5132034]
[1772710455322,0.74713313,92.229,92.194,12.35989624]
[1772710455733,0.74713313,92.229,92.194,10.84669284]
[1772710455938,0.74708735,92.217,92.149,1.5132034]
[1772710456119,37.95354486,92.218,92.151,1.5132034]
[1772710456120,0.74708735,92.209,92.151,1.5132034]
[1772710456320,0.74708735,92.199,92.151,1.5132034]
[1772710456940,4.97504012,92.19,92.151,1.5132034]
[1772710457238,0.7470421,92.179,92.143,10.85269635]
[1772710457751,0.7470421,92.179,92.143,12.36589975]
[1772710458241,0.74699737,92.177,92.143,12.36589975]
[1772710459035,0.74699737,92.177,92.143,10.85269635]
[1772710459639,0.74699737,92.177,92.138,10.85326003]
[1772710459836,0.74699737,92.177,92.139,1.5533063]
[1772710460540,11.5956772,92.176,92.141,1.5533063]
[1772710460941,0.74682351,92.175,92.141,1.5533063]
[1772710461334,10.84765216,92.186,92.141,1.5533063]
[1772710461741,0.74678129,92.185,92.141,1.5533063]
[1772710461953,0.28432314,92.209,92.141,1.5533063]
[1772710462127,0.74678129,92.208,92.141,1.5533063]
[1772710462330,0.74678129,92.208,92.15,1.5533063]
[1772710462540,10.84516359,92.207,92.154,1.5533063]
[1772710462744,0.74673955,92.206,92.162,1.5533063]
[1772710464251,0.74673955,92.206,92.152,1.5533063]
[1772710464432,0.74669829,92.199,92.152,1.5533063]
[1772710465136,0.74665751,92.197,92.154,1.5533063]
[1772710465451,0.28432314,92.217,92.154,1.5533063]
[1772710465452,10.84570174,92.203,92.154,1.5533063]
[1772710466040,10.84570174,92.203,92.156,1.5533063]
[1772710466235,11.59231893,92.203,92.156,1.5533063]
[1772710467144,0.74657734,92.202,92.156,1.5533063]
[1772710467663,0.74653795,92.189,92.156,10.85116541]
[1772710467830,10.84586935,92.201,92.157,1.4286521]
[1772710468153,0.746499,92.2,92.157,1.4286521]
[1772710469054,27.11162069,92.212,92.159,1.4286521]
[1772710469055,0.74646051,92.198,92.159,1.4286521]
[1772710470034,10.84492836,92.209,92.159,1.4286521]
[1772710470450,0.74642245,92.208,92.159,1.4286521]
[1772710470757,0.74642245,92.208,92.162,1.4286521]
[1772710474156,10.84516359,92.207,92.163,10.85034124]
[1772710474335,0.74627456,92.206,92.164,1.4286521]
[1772710474531,10.84446361,92.213,92.164,1.4286521]
[1772710474736,0.74623865,92.223,92.167,1.4286521]
[1772710474935,10.84346593,92.222,92.167,1.71297524]
[1772710476044,0.74620314,92.219,92.167,1.71297524]
[1772710476369,0.74620314,92.217,92.169,1.71297524]
[1772710478076,0.74620314,92.217,92.171,1.71297524]
[1772710478675,10.84338663,92.223,92.173,1.4286521]
[1772710478854,10.84338663,92.223,92.175,1.4286521]
[1772710479873,0.74606515,92.231,92.175,1.4286521]
[1772710480679,10.84245906,92.23,92.178,1.4286521]
[1772710481199,0.74603164,92.241,92.18,1.71297524]
[1772710481356,27.10001301,92.251,92.18,1.71297524]
[1772710481357,11.58614004,92.25,92.18,1.71297524]
[1772710481555,11.58614004,92.25,92.185,1.71297524]
[1772710481877,11.58614004,92.25,92.181,61.04223604]
[1772710481878,11.58614004,92.25,92.191,1.4286521]
[1772710482377,0.74599851,92.249,92.191,1.4286521]
[1772710482770,11.58630919,92.248,92.196,1.4286521]
[1772710482976,11.58630919,92.248,92.196,1.71297524]
[1772710483876,11.58630919,92.248,92.197,1.71297524]
[1772710484175,10.83962855,92.255,92.197,1.71297524]
[1772710484771,10.83962855,92.255,92.199,1.71297524]
[1772710485152,0.7459014,92.296,92.204,1.4286521]
[1772710485378,0.7459014,92.279,92.213,1.4286521]
[1772710485678,0.7459014,92.279,92.213,1.71297524]
[1772710486873,37.92886711,92.278,92.214,37.95519117]
[1772710487069,0.7458385,92.277,92.218,1.71297524]
[1772710489083,0.74574683,92.284,92.222,3.69383402]
[1772710489279,0.74574683,92.308,92.25,1.46848274]
[1772710490260,10.83317986,92.309,92.25,1.46848274]
[1772710490781,10.83317986,92.309,92.252,1.46848274]
[1772710491285,10.83317986,92.309,92.259,1.46848274]
[1772710491464,10.83317986,92.309,92.261,1.61064431]
[1772710491665,0.74565829,92.308,92.261,1.61064431]
[1772710492673,0.74565829,92.308,92.261,1.46848274]
[1772710493478,10.83341458,92.307,92.262,10.83869848]
[1772710493779,0.74562945,92.306,92.263,1.46848274]
[1772710494987,0.2,92.31,92.263,1.46848274]
[1772710495585,0.74557276,92.308,92.265,1.46848274]
[1772710495960,0.74557276,92.308,92.266,61.04223604]
[1772710496166,0.74557276,92.308,92.267,1.46848274]
[1772710496888,0.2,92.31,92.268,1.75280588]
[1772710497671,0.2,92.31,92.27,1.75280588]
[1772710498292,0.74549015,92.309,92.27,1.75280588]
[1772710500390,0.2,92.31,92.272,1.46848274]
[1772710500391,0.74543664,92.307,92.272,1.46848274]
[1772710500682,0.74543664,92.307,92.263,1.46848274]
[1772710501286,0.74543664,92.307,92.262,10.83869848]
[1772710501491,37.91654027,92.308,92.262,10.83869848]
[1772710501492,0.74541035,92.299,92.262,10.83869848]
[1772710501671,0.74541035,92.299,92.257,10.8392444]
[1772710501871,0.74541035,92.299,92.258,1.46848274]
[1772710502388,0.74538436,92.297,92.249,10.84022591]
[1772710502570,0.74538436,92.279,92.24,12.30969666]
[1772710503490,0.74538436,92.279,92.234,10.84198885]
[1772710504273,0.74533327,92.277,92.237,1.46848274]
[1772710507674,10.83705405,92.276,92.239,1.46848274]
[1772710507970,11.58228861,92.276,92.239,1.46848274]
[1772710508673,10.83705405,92.276,92.239,1.46848274]
[1772710509473,10.8361146,92.284,92.239,1.46848274]
[1772710509676,10.8361146,92.284,92.241,1.46848274]
[1772710509987,11.58130149,92.284,92.241,1.46848274]
[1772710510168,0.74518689,92.283,92.241,1.46848274]
[1772710513393,0.74511742,92.281,92.243,1.46848274]
[1772710513698,0.7450948,92.279,92.243,1.46848274]
[1772710513893,0.7450948,92.278,92.226,1.46848274]
[1772710515292,0.74507243,92.276,92.227,10.84281175]
[1772710515481,0.74507243,92.276,92.228,1.46848274]
[1772710516481,0.74505032,92.269,92.228,1.46848274]
[1772710517588,0.74500686,92.267,92.23,1.46848274]
[1772710520003,10.83822859,92.266,92.232,1.58465789]
[1772710520688,0.74492289,92.265,92.232,1.58465789]
[1772710522508,0.7449025,92.263,92.233,10.8421064]
[1772710522702,0.7449025,92.263,92.233,12.42676429]
[1772710523293,10.83846353,92.264,92.234,1.58465789]
[1772710523510,10.83728894,92.274,92.234,1.58465789]
[1772710524009,0.74486242,92.273,92.234,1.58465789]
[1772710524206,0.74486242,92.273,92.233,10.8421064]
[1772710524412,0.74486242,92.273,92.23,1.58465789]
[1772710524600,0.74484272,92.269,92.23,1.58465789]
[1772710525507,0.74484272,92.269,92.232,1.58465789]
[1772710529017,0.74474757,92.267,92.233,12.32520803]
[1772710529316,0.74474757,92.267,92.234,1.48310163]
[1772710532218,27.0938096,92.272,92.236,1.48310163]
[1772710532219,0.74469307,92.265,92.236,1.48310163]
[1772710534725,10.83846353,92.264,92.238,1.48310163]
[1772710537215,0.74460632,92.271,92.239,10.84140114]
[1772710537413,0.74460632,92.271,92.24,1.48310163]
[1772710539500,10.83775875,92.27,92.242,1.48310163]
[1772710540196,0.74455663,92.288,92.242,1.48310163]
[1772710541821,0.74452444,92.286,92.244,1.48310163]
[1772710546820,54.16827799,92.305,92.244,1.48310163]
[1772710546821,0.74444716,92.312,92.249,1.48310163]
[1772710547027,10.83231066,92.317,92.258,1.48310163]
[1772710547407,0.74444716,92.319,92.258,1.48310163]
[1772710547724,0.74444716,92.319,92.258,1.6252632]
[1772710548028,0.74444716,92.319,92.256,0.14216157]
[1772710548029,0.74444716,92.319,92.26,1.76742477]
[1772710548616,0.74444716,92.319,92.266,1.48310163]
[1772710549614,0.66849722,92.322,92.266,1.47825165]
[1772710549820,0.66849722,92.322,92.277,1.76257479]
[1772710549821,1e-08,92.322,92.277,1.76257479]
[1772710550418,0.2,92.34,92.278,1.76257479]
[1772710550713,0.74437422,92.336,92.283,1.76257479]
[1772710551314,0.74437422,92.329,92.283,1.47825165]
[1772710553017,0.7443462,92.327,92.285,1.47825165]
[1772710555124,0.74431882,92.325,92.286,10.83587976]